Workbook

Sheet Лист1 (2)
A1: Отчет
A2: о результатах мониторинга качества финансового менеджмента, осуществляемого главными администраторами средств районного бюджета
A5: на 1 июля 2022 года
A7: № | B7: Наименование главного администратора средств районного бюджета | C7: 1.6. Сумма внесенных изменений в бюджетную роспись в связи с уточнением ассигнований по решению Земского собрания | G7: 1.7. Сумма внесенных положительных изменений в бюджетную роспись в отчетном периоде в связи с передвижками между кодами бюджетной классификации | I7: 1. Финансовое планирование | K7: 2.3. Своевременность принятия бюджетных обязательств | M7: 2.4. Качество прогнозирования кассовых расходов | O7: 2.5. Уровень подготовки платежных документов | Q7: 2.6. Качество исполнения расходов | R7: 2. Исполнение бюджета в части расходов | T7: 3.2. Полнота зачисления платежей в районный бюджет по главному администратору доходов районного бюджета | V7: 3.3. Отклонение кассового исполнения по доходам от прогноза по главному администратору доходов районного бюджета | X7: 3.Исполнение бюджета в части доходов | Z7: 4.3. Коэффициент сложности исполнения бюджетных ассигнований | AB7: 7.3. Уровень использования субсидий бюджетными и автономными учреждениями, предоставленных на выполнение муниципального заданий | AD7: 7.4. Уровень подготовки платежных документов бюджетными и автономными учреждениями | AF7: 7.5. Качество осуществления расходов бюджетными и автономными учреждениями | AG7: 7. Бюджетные и автономные учреждения | AI7: И Т О Г О по главному администратору средств районного бюджета
C8: положительных | E8: отрицательных
C9: значение показателя | D9: количество баллов | E9: значение показателя | F9: количество баллов | G9: значение показателя | H9: количество баллов | I9: значение показателя | J9: количество баллов | K9: значение показателя | L9: количество баллов | M9: значение показателя | N9: количество баллов | O9: значение показателя | P9: количество баллов | Q9: количество баллов | R9: значение показателя | S9: количество баллов | T9: значение показателя | U9: количество баллов | V9: значение показателя | W9: количество баллов | X9: значение показателя | Y9: количество баллов | Z9: значение показателя | AA9: количество баллов | AB9: значение показателя | AC9: количество баллов | AD9: значение показателя | AE9: количество баллов | AF9: количество баллов | AG9: значение показателя | AH9: количество баллов | AI9: количество баллов | AJ9: max возможная сумма баллов | AK9: Общий показатель качества финансового менеджмента главного администратра средств районного бюджета (гр.35/гр.36)*100%
A10: 1 | B10: 2 | C10: 3 | D10: 4 | E10: 5 | F10: 6 | G10: 7 | H10: 8 | I10: 9 | J10: 10 | K10: 11 | L10: 12 | M10: 13 | N10: 14 | O10: 15 | P10: 16 | Q10: 17 | R10: 18 | S10: 19 | T10: 20 | U10: 21 | V10: 22 | W10: 23 | X10: 24 | Y10: 25 | Z10: 26 | AA10: 27 | AB10: 28 | AC10: 29 | AD10: 30 | AE10: 31 | AF10: 32 | AG10: 33 | AH10: 34 | AI10: 35 | AJ10: 36 | AK10: 37
B11: 1 группа
A12: 1 | B12: Администрация района | C12: 92.8 | D12: 8 | E12: 101 | F12: 4 | G12: 99 | H12: 10 | I12: =C12+E12+G12 -> 292.8 | J12: =D12+F12+H12 -> 22 | K12: 10.7 | L12: 0 | M12: 84.9 | N12: 3 | O12: 99.5 | P12: 7 | Q12: 7.3 | R12: =SUM(K12+M12+O12) -> 195.1 | S12: =SUM(L12+N12+P12+Q12) -> 17.3 | T12: 0 | U12: 5 | V12: 7.4 | W12: 10 | X12: =SUM(T12+V12) -> 7.4 | Y12: =SUM(U12+W12) -> 15 | Z12: 29.4 | AA12: 3 | AB12: 90.2 | AC12: 6 | AD12: 99.9 | AE12: 7 | AF12: 7.3 | AG12: =SUM(AB12+AD12) -> 190.1 | AH12: =SUM(AC12+AE12+AF12) -> 20.3 | AI12: =SUM(J12+S12+Y12+AA12+AH12) -> 77.6 | AJ12: 125 | AK12: =SUM(AI12/AJ12)*100 -> 62.08
A13: 2 | B13: Управление образования | C13: 95.8 | D13: 10 | E13: 101.9 | F13: 4 | G13: 99.9 | H13: 10 | I13: =C13+E13+G13 -> 297.6 | J13: 24 | K13: 32.8 | L13: 4 | M13: 94.8 | N13: 6 | O13: 97.9 | P13: 7 | Q13: 7.3 | R13: =SUM(K13+M13+O13) -> 225.5 | S13: =SUM(L13+N13+P13+Q13) -> 24.3 | T13: 0 | U13: 5 | V13: -25 | W13: 0 | X13: =SUM(T13+V13) -> -25 | Y13: 5 | Z13: 935.7 | AA13: 10 | AB13: 79.6 | AC13: 3 | AD13: 99.5 | AE13: 7 | AF13: 6.3 | AG13: =SUM(AB13+AD13) -> 179.1 | AH13: =SUM(AC13+AE13+AF13) -> 16.3 | AI13: =SUM(J13+S13+Y13+AA13+AH13) -> 79.6 | AJ13: 125 | AK13: =SUM(AI13/AJ13)*100 -> 63.68
A14: 3 | B14: Отдел культуры | C14: 97.7 | D14: 10 | E14: 100 | F14: 4 | G14: 99.9 | H14: 10 | I14: 297.6 | J14: 24 | K14: 60.7 | L14: 7 | M14: 96.1 | N14: 10 | O14: 99.7 | P14: 7 | Q14: 8.7 | R14: 256.5 | S14: 32.7 | T14: 0 | U14: 5 | V14: 0 | W14: 0 | X14: 0 | Y14: 5 | Z14: 823.9 | AA14: 6 | AB14: 92.4 | AC14: 6 | AD14: 99.6 | AE14: 7 | AF14: 7.3 | AG14: 192 | AH14: 20.3 | AI14: 88 | AJ14: 125 | AK14: 70.4
B15: 2 группа
A16: 1 | B16: Финансовое управление | C16: 97.6 | D16: 10 | E16: 102.9 | F16: 4 | G16: 100 | H16: 10 | I16: 300.5 | J16: 24 | K16: 29.3 | L16: 0 | M16: 90.4 | N16: 6 | O16: 100 | P16: 10 | Q16: 8.7 | R16: 219.7 | S16: 24.7 | T16: 0 | U16: 5 | V16: 0 | W16: 10 | X16: 0 | Y16: 15 | Z16: 57.5 | AA16: 6 | AI16: 69.7 | AJ16: 95 | AK16: 73.36842105
A17: 2 | B17: Управление сельского хозяйства | C17: 99.7 | D17: 10 | E17: 100 | F17: 4 | G17: 96.8 | H17: 10 | I17: 296.5 | J17: 24 | K17: 77.4 | L17: 7 | M17: 99 | N17: 10 | O17: 100 | P17: 10 | Q17: 8.7 | R17: 276.4 | S17: 35.7 | T17: 0 | U17: 5 | V17: 0 | W17: 10 | X17: 0 | Y17: 15 | Z17: 115.5 | AA17: 10 | AI17: 84.7 | AJ17: 95 | AK17: =SUM(AI17/AJ17)*100 -> 89.15789474
A18: 3 | B18: ОУМИ | C18: 94.1 | D18: 8 | E18: 101.2 | F18: 4 | G18: 96 | H18: 10 | I18: 291.3 | J18: 22 | K18: 12.9 | L18: 0 | M18: 64.4 | N18: 0 | O18: 99 | P18: 7 | Q18: 10 | R18: 176.3 | S18: 17 | T18: 0 | U18: 5 | V18: 0.2 | W18: 10 | X18: 0.2 | Y18: 15 | Z18: 15 | AA18: 3 | AI18: 57 | AJ18: 95 | AK18: =SUM(AI18/AJ18)*100 -> 60

Sheet Лист1

Sheet Лист2

Sheet Лист3
